Cogmind - Beta 16.1 @@@ ROGUE MODE // 2026.06.19 @ 02:56:17 Player: Godsword Result: Destroyed self with Mini Grenade Launcher Performance ------------- Evolutions (1) 500 Regions Visited (3) 600 Robots Destroyed (17) 85 Value Destroyed (555) 555 Prototype IDs (2) 40 Alien Tech Used (0) 0 Bonus (0) 0 TOTAL SCORE: 1780 Bonus ------- None Cogmind --------- Core Integrity 0/400 Matter 43/300 Energy 265/265 System Corruption 0% Temperature Cool (6) Movement Flying (40) Location -9/Mines Parts ------- > --- POWER (1) -------- Improved Ion Engine > --- PROPULSION (4) --- Improved Flight Unit > --- UTILITY (2) ------ Weight Redist. System Improved Targeting Computer > --- WEAPON (2) ------- Mini Grenade Launcher > --- INVENTORY (5) ---- Light EM Pulse Cannon Light EM Pulse Cannon Mining Laser Plasma Cutter Mace Peak State ------------ > --- POWER ------------ (None) > --- PROPULSION ------- Improved Flight Unit > --- UTILITY ---------- Weight Redist. System Improved Targeting Computer > --- WEAPON ----------- Mini Grenade Launcher Mini Grenade Launcher > --- INVENTORY -------- Light EM Pulse Cannon Light EM Pulse Cannon Grenade Launcher Plasma Cutter Mace [Rating: 11] Favorites ----------- Power Improved Ion Engine Engine Improved Ion Engine Propulsion Improved Flight Unit Flight Unit Improved Flight Unit Utility Improved Targeting Computer Device Weight Redist. System Processor Improved Targeting Computer Weapon Mini Grenade Launcher Energy Gun Improved EM Shotgun Energy Cannon Light EM Pulse Cannon Launcher Mini Grenade Launcher Impact Weapon Mace Build | -11 -10 -9 -9 ------- Run | Yrd Mat Mat Min Slots Evolved 2 | . . 2 . Power . | . . . . Propulsion 2 | . . 2 . Utility . | . . . . Weapon . | . . . . Parts Attached 11 | . 1 10 . Power 2 | . . 2 . Engine 2 | . . 2 . Core . | . . . . Reactor . | . . . . Propulsion 1 | . . 1 . Treads . | . . . . Leg . | . . . . Wheel . | . . . . Hover . | . . . . Flight 1 | . . 1 . Utility 2 | . . 2 . Device 1 | . . 1 . Storage . | . . . . Processor 1 | . . 1 . Hackware . | . . . . Protection . | . . . . Artifact . | . . . . Weapon 6 | . 1 5 . Energy Gun 1 | . . 1 . Energy Cannon 1 | . . 1 . Ballistic Gun . | . . . . Ballistic Cannon . | . . . . Launcher 3 | . 1 2 . Special Weapon . | . . . . Impact Weapon 1 | . . 1 . Slashing Weapon . | . . . . Piercing Weapon . | . . . . Special Melee Weapon . | . . . . Unidentified Prototypes 2 | . . 2 . Parts Lost 3 | . . 3 . Power 1 | . . 1 . Propulsion . | . . . . Utility . | . . . . Weapon 2 | . . 2 . Highest Loss Streak 2 | . . 2 . To Critical Strikes . | . . . . Average Backups 2 | . . 3 5 Power . | . . . . Propulsion . | . . . . Utility . | . . . . Weapon 2 | . . 3 4 Tool/Special . | . . . . Unused Backups 4 | . . 2 2 Power . | . . . . Propulsion . | . . . . Utility . | . . . . Weapon 3 | . . 2 1 Tool/Special 1 | . . . 1 Average Slot Usage (%) 32 | . 5 37 55 Flight 5 | . . 6 11 Device 4 | . . 5 11 Processor 8 | . . 10 11 Launcher 12 | . 5 13 11 Peak Build Rating 11 | . 1 11 11 Average Rating 5 | . . 7 11 On Entrance 3 | . . 1 11 Avg Prop Armor Cover (%) . | . . . . Naked Turns 22 | . 22 . . Heaviest Build 8 | . 3 8 . Greatest Support 11 | 3 3 11 . Greatest Overweight (x) . | . . . . Average Overweight (x) . | . . . . Largest Inventory Capacity 5 | 5 5 5 5 Average Capacity 5 | 5 5 5 5 Most Carried 5 | . . 5 5 Average Carried 3 | . . 3 5 Final Capacity 5 | 5 5 5 5 Final Carried 5 | . . 5 5 Class Distribution -------------------- 100% | Mutant Dominant Class ---------------- Mutant | -10/Materials Mutant | -9/Materials Mutant | -9/Mines Resources | -11 -10 -9 -9 ----------- Run | Yrd Mat Mat Min Matter Collected 338 | 200 . 138 . Remotely . | . . . . Salvage Created 310 | . . 282 28 Parts 22 | . . 21 1 Haulers Intercepted . | . . . . Recyclers Shooed . | . . . . Parts Field Recycled . | . . . . Retrieved Matter . | . . . . Parts Self-Destructed . | . . . . Prevented . | . . . . Parts Restored . | . . . . Kills | -11 -10 -9 -9 ------- Run | Yrd Mat Mat Min Combat Hostiles Destroyed 10 | . . 9 1 AOE 10 | . . 9 1 Classes Destroyed 8 | . 1 7 . Builder 1 | . . 1 . Recycler 1 | . . 1 . Mechanic 1 | . . 1 . Operator 2 | . . 2 . Watcher 2 | . 1 1 . Grunt 5 | . . 4 1 Duelist 1 | . . 1 . Sentry 4 | . . 4 . Best Kill Streak 6 | . 1 6 1 Combat Bots Only 6 | . . 6 1 Max Kills in Single Turn 3 | . 1 3 1 Gunslinging . | . . . . Exploded 2 | . . 2 1 Melee . | . . . . Uniques/NPCs Destroyed . | . . . . Combat | -11 -10 -9 -9 -------- Run | Yrd Mat Mat Min Hostile Shots Fired 42 | . . 38 4 Missed 16 | . . 15 1 Hits 26 | . . 23 3 Projectile 26 | . . 23 3 Damage Taken 666 | . 17 508 141 Core 424 | . 17 304 103 Absorbed by Shields . | . . . . Regen/Repaired (Parts) 40 | . . 40 . Core Remaining (%) 96 | 100 93 . . Volleys Fired 24 | . 3 18 3 Largest 2 | . 1 2 1 Hottest 60 | . 30 60 30 Shots Fired 28 | . 3 22 3 Gun . | . . . . Cannon . | . . . . Launcher 28 | . 3 22 3 Special . | . . . . Kinetic . | . . . . Thermal . | . . . . Explosive 28 | . 3 22 3 Electromagnetic . | . . . . Robot Hit Streak 8 | . 2 8 5 Robot Miss Streak 1 | . 1 1 . Penetration Max . | . . . . Secondary Targets . | . . . . Shots Hit Robots 19 | . 2 14 3 Core Hits 31 | . 1 28 2 Critical Kills . | . . . . Critical Parts Destroyed . | . . . . Critical Strikes . | . . . . Melee Attacks . | . . . . Impact . | . . . . Slashing . | . . . . Piercing . | . . . . Sneak Attacks . | . . . . Combat Hostiles . | . . . . Follow-up Attacks . | . . . . Damage Inflicted 1357 | . 133 950 274 Guns . | . . . . Cannons . | . . . . Explosions 1357 | . 133 950 274 Melee . | . . . . Ramming . | . . . . Kinetic . | . . . . Thermal . | . . . . Explosive 1357 | . 133 950 274 Electromagnetic . | . . . . Impact . | . . . . Slashing . | . . . . Piercing . | . . . . Highest Corruption . | . . . . Average Corruption . | . . . . Corruption Purged . | . . . . Corruption Blocked . | . . . . Overload Shots . | . . . . Overflow Damage 31 | . 21 10 . Projectiles . | . . . . Explosions 31 | . 21 10 . Melee . | . . . . Knockbacks . | . . . . Impact . | . . . . Kinetic . | . . . . Secondary . | . . . . Self-Inflicted Damage 286 | . 17 152 117 Shots 7 | . 1 3 3 Rammed . | . . . . Targets Rammed . | . . . . Kicked . | . . . . Crushed . | . . . . Highest Temperature 12 | . 5 2 12 Average Temperature 4 | . 5 2 7 Received Heat Transfer 120 | . . 96 24 Siege Activations . | . . . . Martial Activations . | . . . . Shielding Activations . | . . . . Robots Disrupted . | . . . . Combat Hostiles . | . . . . Robots Corrupted . | . . . . Combat Hostiles . | . . . . Parts Fried . | . . . . Impact Corruptions . | . . . . Robots Melted . | . . . . Combat Hostiles . | . . . . Parts Melted . | . . . . Heat Transferred . | . . . . Parts Sabotaged . | . . . . Parts Stolen . | . . . . Parts Stripped . | . . . . Power Chain Reactions . | . . . . Alert | -11 -10 -9 -9 ------- Run | Yrd Mat Mat Min Maximum Alert Level 1 | . . 1 . Low Security (%) 82 | 100 100 78 100 Level 1 17 | . . 21 . Level 2 . | . . . . Level 3 . | . . . . Level 4 . | . . . . Level 5 . | . . . . High Security . | . . . . Max Security . | . . . . Peak Influence 386 | . 57 386 177 Initial 142 | . . 24 142 Average 110 | . 21 130 174 Influence Increases 589 | . 62 492 35 Destroy 0b10 Robot/C 200 | . . 180 20 Destroy 0b10 Robot/NC 35 | . 5 30 . Destroy Leader 64 | . 2 62 . Successful Hack 13 | . 5 8 . Disable Machine 105 | . . 105 . Destroy Structure 142 | . 20 107 15 Lose Combat Pursuer 30 | . 30 . . Influence Decreases 412 | . 5 183 224 Entered New Map 257 | . . 33 224 Time Decay 115 | . 5 110 . Lost Part 30 | . . 30 . Lost Ally 10 | . . 10 . Squads Dispatched 1 | . . 1 . Investigation 1 | . . 1 . Extermination . | . . . . Reinforcement . | . . . . Assault . | . . . . Garrison . | . . . . Intercept . | . . . . Searches Triggered . | . . . . Construction Impeded . | . . . . Haulers Reinforced . | . . . . Active Scanning Responses . | . . . . Cargo Convoy Interrupts . | . . . . Stealth | -11 -10 -9 -9 --------- Run | Yrd Mat Mat Min Distress Signals 3 | . 1 2 . Communications Jammed . | . . . . Distress Signals . | . . . . Times Spotted 17 | . 1 14 2 Peak Tracking Total 4 | . 3 4 2 Tactical Retreats 1 | . 1 . . Traps | -11 -10 -9 -9 ------- Run | Yrd Mat Mat Min Traps Triggered . | . . . . Indirectly . | . . . . Trap Hack Attempts . | . . . . Triggered . | . . . . Disarmed . | . . . . Reprogrammed . | . . . . Reused . | . . . . Traps Extracted . | . . . . Installed . | . . . . Triggered . | . . . . Machines | -11 -10 -9 -9 ---------- Run | Yrd Mat Mat Min Machines Disabled 7 | . . 7 . Max in Single Turn 1 | . . 1 . Machines Repaired . | . . . . Machines Dismantled . | . . . . Machines Sabotaged . | . . . . Overloaded Fab Kills . | . . . . Hacking | -11 -10 -9 -9 --------- Run | Yrd Mat Mat Min Machines Accessed 5 | . 1 4 . Terminals 4 | . 1 3 . Fabricators . | . . . . Repair Stations 1 | . . 1 . Recycling Units . | . . . . Scanalyzers . | . . . . Garrison Access . | . . . . Total Hacks 10 | . 3 7 . Successful 5 | . 2 3 . Failed 5 | . 1 4 . Catastrophic 2 | . . 2 . Database Lockouts . | . . . . Manual 2 | . . 2 . Terminals 6 | . 3 3 . Fabricators . | . . . . Repair Stations 4 | . . 4 . Recycling Units . | . . . . Scanalyzers . | . . . . Garrison Access . | . . . . Terminal Hacks 2 | . 2 . . Locate Traps 1 | . 1 . . Zone Layout 1 | . 1 . . Fabricator Hacks . | . . . . Repair Station Hacks 2 | . . 2 . Scan Component 1 | . . 1 . Repair 1 | . . 1 . Recycling Unit Hacks . | . . . . Scanalyzer . | . . . . Garrison Access Hacks . | . . . . Unauthorized Hacks 1 | . . 1 . Terminals 1 | . . 1 . Assimilate 1 | . . 1 . Fabricators . | . . . . Repair Stations . | . . . . Recycling Units . | . . . . Scanalyzers . | . . . . Garrison Access . | . . . . Data Cores Recovered 1 | . . 1 . Used . | . . . . Hacking Detections 4 | . 1 3 . Full Trace Events 1 | . . 1 . Feedback Events . | . . . . Feedback Blocked . | . . . . Robot Schematics Acquired . | . . . . Robots Built . | . . . . Authchips . | . . . . Time . | . . . . Total Robot Build Rating . | . . . . Part Schematics Acquired . | . . . . Parts Built . | . . . . Authchips . | . . . . Time . | . . . . Total Part Build Rating . | . . . . Part Studies Acquired . | . . . . Parts Repaired 1 | . . 1 . Time 32 | . . 32 . Parts Recycled . | . . . . Recycled Matter . | . . . . Retrieved Matter . | . . . . Retrieved Components . | . . . . Parts Scanalyzed . | . . . . Part Schematics Acquired . | . . . . Parts Damaged . | . . . . Bothacking | -11 -10 -9 -9 ------------ Run | Yrd Mat Mat Min Used RIF Installer . | . . . . Robots Hacked . | . . . . Non-combat . | . . . . Combat . | . . . . Robot Hacks Applied . | . . . . Relay Couplers Released . | . . . . Fabnet Peak Effective % . | . . . . Robots Rewired . | . . . . Allies Hacked . | . . . . Hacks Repelled . | . . . . Allies | -11 -10 -9 -9 -------- Run | Yrd Mat Mat Min Total Allies 1 | . . 1 . Largest Group 1 | . . 1 . Highest-Rated Group 10 | . . 10 . Highest-Rated Ally 10 | . . 10 . Total Orders . | . . . . Ally Attacks . | . . . . Total Damage . | . . . . Kills . | . . . . Allies Corrupted . | . . . . Allies Melted . | . . . . Intel | -11 -10 -9 -9 ------- Run | Yrd Mat Mat Min Active Infowar (turns) . | . . . . Robot Analysis Total . | . . . . Derelict Logs Recovered . | . . . . Drone Launches . | . . . . Drone Recoveries . | . . . . Exploration | -11 -10 -9 -9 ------------- Run | Yrd Mat Mat Min Turns Passed 292 | 14 37 237 4 Spaces Moved 379 | 28 58 293 . Core 183 | 28 58 97 . Treads . | . . . . Legs . | . . . . Wheels . | . . . . Hover . | . . . . Flight 196 | . . 196 . Fastest Speed 40 | 50 50 40 . Average Speed 44 | 50 50 43 . Slowest Speed 50 | 50 50 50 . Overloaded Moves . | . . . . Propulsion Burnouts . | . . . . Robots Hopped . | . . . . Potential Cave-ins . | . . . . Cave-ins Triggered . | . . . . Exploration Rate (%) 15 | 4 21 31 4 Regions Visited 3 Branch Regions 1 Pre-discovered Areas . | . . . . Known Exits Taken . | . . . . Unknown Exits Taken 3 | 1 1 1 . Scrap Searched . | . . . . Spaces Dug . | . . . . Terrain Destroyed 168 | . 19 125 24 Melee . | . . . . Projectile . | . . . . AOE 168 | . 19 125 24 Terrain Rammed . | . . . . Walls Destroyed . | . . . . Machines Disabled . | . . . . Actions | -11 -10 -9 -9 --------- Run | Yrd Mat Mat Min Total 468 | 27 61 377 3 Wait 43 | . . 43 . Move 376 | 27 57 292 . Hop . | . . . . Pick Up 6 | . . 6 . Fast Attach 12 | . 1 11 . Attach 1 | . . 1 . Detach 2 | . . 2 . Swap . | . . . . Drop 4 | . . 4 . Fire 24 | . 3 18 3 Melee . | . . . . Ram . | . . . . Kick . | . . . . Crush . | . . . . Escape Stasis . | . . . . Rewire . | . . . . Trap . | . . . . Miscellaneous . | . . . . Route ------- -11/Scrapyard -10/Materials -9/Materials -9/Mines History --------- Turn | Location | Event 5 | -11/Scrapyard | Discovered new exit (range 16) 15 | -11/Scrapyard | Entered Materials 39 | -10/Materials | Discovered new exit (range 10) 52 | -10/Materials | Entered another Materials area 52 | -9/Materials | Evolved 2 slots: Propulsion x2 212 | -9/Materials | Repaired Mni. Grenade Launcher 242 | -9/Materials | Core integrity fell below 50% 272 | -9/Materials | Discovered new exit (range 12) 289 | -9/Materials | Entered Mines 290 | -9/Mines | Core integrity fell below 20% 293 | -9/Mines | Destroyed self with Mini Grenade Launcher Last Messages --------------- 00250_ The unstable cave ceiling collapses. 00250_ R-06 Scavenger collects Lgt. Armor Plating. 00250_ G-34 Mercenary destroyed. 00251_ The unstable cave ceiling collapses. 00254_ Acquired 12 matter. 00255_ U-05 Engineer lays Concrete. 00257_ Acquired 13 matter. 00258_ Acquired 18 matter. 00258_ Acquired 11 matter. 00258_ U-05 Engineer builds a Wall. 00262_ U-05 Engineer lays Concrete. 00271_ The unstable cave ceiling collapses. 00271_ Aluminum Leg crushed. 00272_ EXIT=FOUND 00280_ Acquired Imp. Ion Engine. 00286_ Acquired Mining Laser. LOCATION=UNKNOWN GOAL=ESCAPE 00289_ G-34 Mercenary destroyed. Map ----- +----------------------------------------------------+ | ??????????????????????????????????????????? | | ??????????????????????????????????????????? | | ??????????????????????????????????????????? | | ??????????????????????????????????????????? | | ??????????????????????????????????????????? | | ??????????????????????????????????????????? | | ??????????????????????????????????????????? | | ??????????????????????????????????????????? | | ??????????????????????????????????????????? | | ??????????????????????????????????????????? | | ??????????????????????????????????????????? | | ??????????????????????????????????????????? | | ??????????????????????????????????????????? | | ??????????????????????????????????????????? | | ??????????????????????????????????????????? | | ??????????????????????????????????????????? | | ??????????????????????????????????????????? | | ??????????????????????????????????????????? | | ????????????????????????#####?????????????? | | ???????????????????????## # ###???????????? | | ??????????????????????## ##?#????????? | | ??????????????????????# #""""#?????? | | ??????????????????????# g " ! "?????? | | ??????????????????????# g " ????????? | | ??????????????????????# #???????????? | | ??????????????????????# @ #???????????? | | ??????????????????????# #???????????? | | ??????????????????????### ###???????????? | | ????????????????????????# ##?????????????? | | ????????????????????????# #??????????????? | | ????????????????????????# #??????????????? | | ????????????????????????# #??????????????? | | ???????????????????????? #??????????????? | | ???????????????????????? ??????????????? | | ????????????????????????####??????????????? | | ??????????????????????????????????????????? | | ??????????????????????????????????????????? | | ??????????????????????????????????????????? | | ??????????????????????????????????????????? | | ??????????????????????????????????????????? | | ??????????????????????????????????????????? | | ??????????????????????????????????????????? | | ??????????????????????????????????????????? | | ??????????????????????????????????????????? | | ??????????????????????????????????????????? | | | | | | | | | | | +----------------------------------------------------+ Best States ------------- Heat Dissipation 28 Energy Generation 12 Energy Capacity 265 Matter Stores 300 Matter Capacity 300 Sight Range 16 Terrain Scan Density 10 Additional Mass Support 6 Evasion (%) 62 Targeting Accuracy 6 Item Schematics ----------------- None Robot Schematics ------------------ None Fabricated ------------ Nothing Repaired ---------- Mni. Grenade Launcher | 20% | -9/Materials Studied --------- None Alien Tech Used ----------------- None Achievements -------------- None Challenges ------------ None Game ------ Seed CouplerAerolevStripper Manual? 0 Play Time 00:05:20 Cumulative 38.7 hours Start 2026.06.19 @ 02:51:03 End 2026.06.19 @ 02:56:17 Sessions 1 Manual Loads 0 Difficulty Rogue Special Mode None Game No. 101 Rogue 101 Adventurer 0 Explorer 0 Win Type - Total 3 Types 3/0/0/0/0/0/0/0/0/0 Lore% 43 Gallery% 34 Achievement% 35 Wizard Run 0 Options --------- Layout 1 ASCII 0 Keyboard 0 Movement Mouse Keybinds 0 Fullscreen 1 Font 16/SmallcapsGlow Map View 50x40 Zoom Use 0% Tactical HUD 1 Map Filters NONE Filters NONE Steam SD RUN: f2d10162-01f0-497c-b36c-74a92f0dcdd5